Cogmind - Beta 14 @@@ ROGUE MODE // 2024.12.17 @ 23:12:47 Player: Julie Result: Self-destructed Performance ------------- Evolutions (2) 1000 Regions Visited (3) 600 Robots Destroyed (5) 25 Value Destroyed (187) 187 Prototype IDs (0) 0 Alien Tech Used (0) 0 Bonus (0) 0 TOTAL SCORE: 1812 Bonus ------- None Cogmind --------- Core Integrity 307/550 Matter 289/300 Energy 100/100 System Corruption 0% Temperature Cool (0) Movement Core (50) Location -8/Materials Parts ------- > --- POWER (2) -------- (None) > --- PROPULSION (4) --- (None) > --- UTILITY (3) ------ Core Analyzer Core Shielding > --- WEAPON (2) ------- (None) > --- INVENTORY (5) ---- Flight Unit Improved VTOL Module Small Laser Peak State ------------ > --- POWER ------------ Ion Engine > --- PROPULSION ------- Advanced Treads Advanced Treads Advanced Treads Advanced Treads > --- UTILITY ---------- Core Analyzer Core Shielding > --- WEAPON ----------- (None) > --- INVENTORY -------- Flight Unit Small Laser [Rating: 18] Favorites ----------- Power Light Ion Engine Engine Light Ion Engine Propulsion Flight Unit Treads Light Treads Flight Unit Flight Unit Utility Light Armor Plating Storage Small Storage Unit Processor Core Analyzer Protection Light Armor Plating Weapon Small Laser Energy Gun Small Laser Ballistic Gun Autogun Build | -11 -10 -9 -8 ------- Run | Yrd Mat Mat Mat Slots Evolved 4 | . . 2 2 Power 1 | . . . 1 Propulsion 2 | . . 1 1 Utility 1 | . . 1 . Weapon . | . . . . Parts Attached 28 | 7 10 4 7 Power 4 | 2 1 . 1 Engine 4 | 2 1 . 1 Core . | . . . . Reactor . | . . . . Propulsion 11 | 2 4 1 4 Treads 6 | 2 . . 4 Leg . | . . . . Wheel . | . . . . Hover . | . . . . Flight 5 | . 4 1 . Utility 7 | 1 4 . 2 Device . | . . . . Storage 1 | 1 . . . Processor 1 | . . . 1 Hackware . | . . . . Protection 5 | . 4 . 1 Artifact . | . . . . Weapon 6 | 2 1 3 . Energy Gun 4 | 2 1 1 . Energy Cannon . | . . . . Ballistic Gun 2 | . . 2 . Ballistic Cannon . | . . . . Launcher . | . . . . Special Weapon . | . . . . Impact Weapon . | . . . . Slashing Weapon . | . . . . Piercing Weapon . | . . . . Special Melee Weapon . | . . . . Unidentified Prototypes . | . . . . Parts Lost 9 | . . 1 8 Power 2 | . . . 2 Propulsion 5 | . . 1 4 Utility 1 | . . . 1 Weapon 1 | . . . 1 Highest Loss Streak 4 | . . 1 4 To Critical Strikes . | . . . . Average Slot Usage (%) 64 | . 77 71 48 Engine 9 | . 12 11 6 Treads 4 | . 3 . 7 Flight 19 | . 21 27 12 Storage 1 | . 3 . . Protection 8 | . 8 11 7 Energy Gun 15 | . 27 17 5 Ballistic Gun 3 | . . 4 5 Peak Build Rating 18 | 6 7 9 18 Average Rating 7 | 4 5 7 9 On Entrance 5 | . 6 6 8 Naked Turns . | . . . . Heaviest Build 12 | 10 10 12 12 Greatest Support 88 | 3 40 12 88 Greatest Overweight (x) 3 | 3 3 1 1 Average Overweight (x) . | 2 . . . Largest Inventory Capacity 8 | 8 8 5 5 Average Capacity 5 | 7 5 5 5 Most Carried 5 | 1 5 5 5 Average Carried 3 | . 4 4 4 Final Capacity 8 | 8 5 5 5 Final Carried 5 | 1 5 5 3 Class Distribution -------------------- 100% | Mutant Dominant Class ---------------- Mutant | -10/Materials Mutant | -9/Materials Mutant | -8/Materials Resources | -11 -10 -9 -8 ----------- Run | Yrd Mat Mat Mat Matter Collected 415 | 71 . 46 298 Remotely . | . . . . Salvage Created 200 | . 15 46 139 Parts 14 | . 3 3 8 Haulers Intercepted . | . . . . Recyclers Shooed . | . . . . Parts Field Recycled . | . . . . Retrieved Matter . | . . . . Parts Self-Destructed . | . . . . Prevented . | . . . . Kills | -11 -10 -9 -8 ------- Run | Yrd Mat Mat Mat Combat Hostiles Destroyed 4 | . . 1 3 Melee 1 | . . . 1 Guns 3 | . . 1 2 Classes Destroyed 3 | . 1 1 1 Operator 1 | . 1 . . Grunt 2 | . . 1 1 Sentry 2 | . . . 2 Best Kill Streak 2 | . 1 1 2 Combat Bots Only 2 | . . 1 2 Max Kills in Single Turn 1 | . 1 1 1 Gunslinging . | . . . . Exploded . | . . . . Melee 1 | . . . 1 Uniques/NPCs Destroyed . | . . . . Combat | -11 -10 -9 -8 -------- Run | Yrd Mat Mat Mat Hostile Shots Fired 104 | . . 9 95 Missed 27 | . . 4 23 Damage Taken 1373 | . . 90 1283 Core 276 | . . 33 243 Absorbed by Shields . | . . . . Redirected to Shielding 26 | . . . 26 Core Remaining (%) 97 | 100 100 91 . Volleys Fired 21 | . 2 9 10 Largest 2 | . 2 2 2 Hottest 80 | . 80 80 79 Shots Fired 30 | . 4 13 13 Gun 30 | . 4 13 13 Cannon . | . . . . Launcher . | . . . . Special . | . . . . Kinetic 4 | . . 1 3 Thermal 26 | . 4 12 10 Explosive . | . . . . Electromagnetic . | . . . . Robot Hit Streak 8 | . 2 1 8 Robot Miss Streak 7 | . 1 7 1 Penetration Max . | . . . . Secondary Targets . | . . . . Shots Hit Robots 16 | . 3 2 11 Core Hits 9 | . 2 2 5 Critical Kills . | . . . . Critical Parts Destroyed . | . . . . Critical Strikes 1 | . . . 1 Burn 1 | . . . 1 Melee Attacks . | . . . . Impact . | . . . . Slashing . | . . . . Piercing . | . . . . Sneak Attacks . | . . . . Combat Hostiles . | . . . . Follow-up Attacks . | . . . . Damage Inflicted 243 | . 32 36 175 Guns 228 | . 32 36 160 Cannons . | . . . . Explosions . | . . . . Melee . | . . . . Ramming 15 | . . . 15 Kinetic 43 | . . . 43 Thermal 185 | . 32 36 117 Explosive . | . . . . Electromagnetic . | . . . . Impact . | . . . . Slashing . | . . . . Piercing . | . . . . Highest Corruption . | . . . . Average Corruption . | . . . . Corruption Purged . | . . . . Corruption Blocked . | . . . . Overload Shots . | . . . . Overflow Damage . | . . . . Projectiles . | . . . . Explosions . | . . . . Melee . | . . . . Knockbacks . | . . . . Impact . | . . . . Kinetic . | . . . . Secondary . | . . . . Self-Inflicted Damage 3 | . . . 3 Shots . | . . . . Rammed 7 | . . . 7 Targets Rammed 8 | . . . 8 Kicked . | . . . . Crushed 1 | . . . 1 Highest Temperature 95 | . 48 94 95 Average Temperature 43 | . 26 48 42 Received Heat Transfer 549 | . . 27 522 Siege Activations . | . . . . Robots Corrupted . | . . . . Combat Hostiles . | . . . . Parts Fried . | . . . . Impact Corruptions . | . . . . Robots Melted . | . . . . Combat Hostiles . | . . . . Parts Melted . | . . . . Heat Transferred 532 | . 75 87 370 Parts Sabotaged . | . . . . Parts Stolen . | . . . . Parts Stripped . | . . . . Power Chain Reactions . | . . . . Alert | -11 -10 -9 -8 ------- Run | Yrd Mat Mat Mat Peak Influence 181 | . 49 135 181 Initial 56 | . . 20 56 Average 45 | . 16 44 97 Maximum Alert Level . | . . . . Low Security (%) 100 | 100 100 100 100 Level 1 . | . . . . Level 2 . | . . . . Level 3 . | . . . . Level 4 . | . . . . Level 5 . | . . . . High Security . | . . . . Max Security . | . . . . Squads Dispatched 2 | . . 1 1 Investigation 1 | . . 1 . Extermination . | . . . . Reinforcement 1 | . . . 1 Assault . | . . . . Garrison . | . . . . Intercept . | . . . . Searches Triggered . | . . . . Construction Impeded . | . . . . Haulers Reinforced . | . . . . Active Scanning Responses . | . . . . Cargo Convoy Interrupts . | . . . . Stealth | -11 -10 -9 -8 --------- Run | Yrd Mat Mat Mat Distress Signals 2 | . . 1 1 Communications Jammed . | . . . . Distress Signals . | . . . . Times Spotted 27 | . 4 7 16 Peak Tracking Total 11 | . 3 6 11 Tactical Retreats 3 | . 1 1 1 Traps | -11 -10 -9 -8 ------- Run | Yrd Mat Mat Mat Traps Triggered 4 | . 3 1 . Indirectly . | . . . . Trap Hack Attempts . | . . . . Triggered . | . . . . Disarmed . | . . . . Reprogrammed . | . . . . Reused . | . . . . Traps Extracted . | . . . . Installed . | . . . . Triggered . | . . . . Machines | -11 -10 -9 -8 ---------- Run | Yrd Mat Mat Mat Machines Disabled . | . . . . Max in Single Turn . | . . . . Machines Repaired . | . . . . Machines Dismantled . | . . . . Machines Sabotaged . | . . . . Overloaded Fab Kills . | . . . . Hacking | -11 -10 -9 -8 --------- Run | Yrd Mat Mat Mat Machines Accessed 5 | . 4 1 . Terminals 4 | . 4 . . Fabricators . | . . . . Repair Stations . | . . . . Recycling Units . | . . . . Scanalyzers 1 | . . 1 . Garrison Access . | . . . . Total Hacks 14 | . 6 8 . Successful 8 | . 2 6 . Failed 6 | . 4 2 . Catastrophic . | . . . . Database Lockouts . | . . . . Manual 2 | . 2 . . Terminals 6 | . 6 . . Fabricators . | . . . . Repair Stations . | . . . . Recycling Units . | . . . . Scanalyzers 8 | . . 8 . Garrison Access . | . . . . Terminal Hacks 2 | . 2 . . Robot Analysis 1 | . 1 . . Zone Layout 1 | . 1 . . Fabricator Hacks . | . . . . Repair Station Hacks . | . . . . Recycling Unit Hacks . | . . . . Scanalyzer 6 | . . 6 . Insert Component 3 | . . 3 . Analyze 3 | . . 3 . Garrison Access Hacks . | . . . . Unauthorized Hacks . | . . . . Terminals . | . . . . Fabricators . | . . . . Repair Stations . | . . . . Recycling Units . | . . . . Scanalyzers . | . . . . Garrison Access . | . . . . Data Cores Recovered . | . . . . Used . | . . . . Hacking Detections 4 | . 3 1 . Full Trace Events 1 | . . 1 . Feedback Events . | . . . . Feedback Blocked . | . . . . Robot Schematics Acquired . | . . . . Robots Built . | . . . . Authchips . | . . . . Time . | . . . . Total Robot Build Rating . | . . . . Part Schematics Acquired 2 | . . 2 . Parts Built . | . . . . Authchips . | . . . . Time . | . . . . Total Part Build Rating . | . . . . Parts Repaired . | . . . . Time . | . . . . Parts Recycled . | . . . . Recycled Matter . | . . . . Retrieved Matter . | . . . . Retrieved Components . | . . . . Parts Scanalyzed 2 | . . 2 . Part Schematics Acquired 2 | . . 2 . Parts Damaged 1 | . . 1 . Bothacking | -11 -10 -9 -8 ------------ Run | Yrd Mat Mat Mat Used RIF Installer . | . . . . Robots Hacked . | . . . . Non-combat . | . . . . Combat . | . . . . Robot Hacks Applied . | . . . . Relay Couplers Released . | . . . . Fabnet Peak Effective % . | . . . . Robots Rewired . | . . . . Allies Hacked . | . . . . Hacks Repelled . | . . . . Allies | -11 -10 -9 -8 -------- Run | Yrd Mat Mat Mat Total Allies . | . . . . Largest Group . | . . . . Highest-Rated Group . | . . . . Highest-Rated Ally . | . . . . Total Orders . | . . . . Ally Attacks . | . . . . Total Damage . | . . . . Kills . | . . . . Allies Corrupted . | . . . . Allies Melted . | . . . . Intel | -11 -10 -9 -8 ------- Run | Yrd Mat Mat Mat Robot Analysis Total 1 | . 1 . . Derelict Logs Recovered . | . . . . Drone Launches . | . . . . Drone Recoveries . | . . . . Exploration | -11 -10 -9 -8 ------------- Run | Yrd Mat Mat Mat Turns Passed 631 | 121 165 148 197 Spaces Moved 695 | 65 277 222 131 Core 70 | 65 5 . . Treads 37 | . 13 . 24 Legs . | . . . . Wheels . | . . . . Hover . | . . . . Flight 588 | . 259 222 107 Fastest Speed 34 | 50 37 34 37 Average Speed 67 | 168 47 36 112 Slowest Speed 200 | 200 200 117 145 Overloaded Moves . | . . . . Propulsion Burnouts . | . . . . Robots Hopped 4 | . 2 1 1 Cave-ins Triggered . | . . . . Exploration Rate (%) 22 | 4 41 27 18 Regions Visited 3 Branch Regions . Pre-discovered Areas . | . . . . Known Exits Taken . | . . . . Unknown Exits Taken 3 | 1 1 1 . Scrap Searched . | . . . . Spaces Dug . | . . . . Terrain Destroyed . | . . . . Melee . | . . . . Projectile . | . . . . AOE . | . . . . Terrain Rammed . | . . . . Walls Destroyed . | . . . . Machines Disabled . | . . . . Actions | -11 -10 -9 -8 --------- Run | Yrd Mat Mat Mat Total 811 | 73 302 274 162 Wait 48 | 1 4 39 4 Move 684 | 64 272 219 129 Hop 4 | . 2 1 1 Pick Up 9 | 1 5 1 2 Fast Attach 19 | 6 10 . 3 Attach 4 | . . 1 3 Detach 2 | . 2 . . Swap 5 | 1 . 3 1 Drop 7 | . 5 1 1 Fire 21 | . 2 9 10 Melee . | . . . . Ram 3 | . . . 3 Kick . | . . . . Crush 5 | . . . 5 Escape Stasis . | . . . . Rewire . | . . . . Trap . | . . . . Miscellaneous . | . . . . Route ------- -11/Scrapyard -10/Materials -9/Materials -8/Materials History --------- Turn | Location | Event 19 | -11/Scrapyard | Discovered new exit (range 16) 122 | -11/Scrapyard | Entered Materials 257 | -10/Materials | Discovered new exit (range 16) 287 | -10/Materials | Entered another Materials area 287 | -9/Materials | Evolved 2 slots: Propulsion x1, Utility x1 327 | -9/Materials | Build established: Mutant 430 | -9/Materials | Discovered new exit (range 10) 435 | -9/Materials | Entered another Materials area 435 | -8/Materials | Evolved 2 slots: Power x1, Propulsion x1 600 | -8/Materials | Lost 4 parts (1p1n1u1w) 632 | -8/Materials | Self-destructed Last Messages --------------- 00568_ Beam Rifle destroyed. 00569_ Flight Unit destroyed. 00570_ R-06 Scavenger collects Lgt. Treads. 00571_ K-01 Serf collects debris. 00573_ Acquired Adv. Treads. 00592_ Acquired Prototype Flight Unit. 00602_ Crushed G-47 Trooper. 00602_ G-47 Trooper destroyed. 00603_ Acquired 28 matter. 00603_ Slammed into Y-45 Defender. 00605_ Slammed into L-31 Rogue. 00610_ Critical hit (Burn: +37). 00610_ Adv. Treads destroyed. 00614_ Ion Engine destroyed. 00617_ Adv. Treads severed. 00619_ Acquired 210 matter. 00624_ Adv. Treads destroyed. 00625_ Slammed into L-31 Rogue. 00627_ Adv. Treads destroyed. 00628_ Slammed into L-31 Rogue. Map ----- +----------------------------------------------------+ | ???????? !! #????# """"" #?????????????????? | | ?????? #????# """ #?????????????????? | | ????# """ """ #????# #?????????????????? | | ????## """ """ #????# #?????????????????? | | ?????# """ """ #????# [ #?????????????????? | | ??????? #????#####+#####?????????????????? | | ???????###/########+### #???????????????????? | | ???????? ########????????????? | | ???????? +?????????? | | ???????? ##+#####????????????? | | ?????????############## #?? ????????????????? | | ???????????????######### ##??? ???????????????? | | ???????????????# *# #?????#??????????????? | | ???????????????# === # #????????????????????? | | ???????????????# === !/ #????????????????????? | | ???????????????#] # #????????????????????? | | ???????????????# # #????????????????????? | | ???????????????######### ########?????????????? | | ???????????????######### #?????????????? | | ???????????? r #?????????????? | | ???????????????######+## #?????????????? | | ???????????????????????####/### +?????????????? | | ???????????????????????# gY #? #?????????????? | | ???????????????????????# gg #?? #?????????????? | | ???????????????????????#l"""g #???#?????????????? | | ???????????????????????#@"G *#?????????????????? | | ???????????????????????#l""" #?????????????????? | | ???????????????????????# #?????????????????? | | ???????????????????????########?????????????????? | | ????????????????????????????????????????????????? | | ????????????????????????????????????????????????? | | ????????????????????????????????????????????????? | | ????????????????????????????????????????????????? | | ????????????????????????????????????????????????? | | ????????????????????????????????????????????????? | | ????????????????????????????????????????????????? | | ????????????????????????????????????????????????? | | ????????????????????????????????????????????????? | | ????????????????????????????????????????????????? | | ????????????????????????????????????????????????? | | ????????????????????????????????????????????????? | | ????????????????????????????????????????????????? | | ????????????????????????????????????????????????? | | ????????????????????????????????????????????????? | | ????????????????????????????????????????????????? | | ????????????????????????????????????????????????? | | ????????????????????????????????????????????????? | | ????????????????????????????????????????????????? | | ????????????????????????????????????????????????? | | ????????????????????????????????????????????????? | +----------------------------------------------------+ Best States ------------- Heat Dissipation 31 Energy Generation 10 Energy Capacity 250 Matter Stores 289 Matter Capacity 300 Sight Range 16 Terrain Scan Density 10 Armor Coverage 150 Core Shielding 20 Evasion (%) 63 Core Analysis 6 Recoil Reduction 4 Item Schematics ----------------- Core Shielding | -9/Materials | Scanalyzed Flight Unit | -9/Materials | Scanalyzed Robot Schematics ------------------ None Fabricated ------------ Nothing Alien Tech Used ----------------- None Achievements -------------- None Challenges ------------ None Game ------ Seed TechMinesnifferSpiker Manual? 0 Play Time 00:12:49 Cumulative 21.8 hours Start 2024.12.17 @ 22:58:54 End 2024.12.17 @ 23:12:47 Sessions 1 Manual Loads 0 Difficulty Rogue Special Mode None Game No. 67 Rogue 67 Adventurer 0 Explorer 0 Win Type - Total 0 Types 0/0/0/0/0/0/0/0/0 Lore% 11 Gallery% 25 Achievement% 21 Wizard Run 0 Options --------- Layout 1 ASCII 0 Keyboard 1 Movement Numpad Keybinds 1 Fullscreen 1 Font 24/Smallcaps Map View 25x17 Zoom Use 31% Tactical HUD 1 Map Filters NONE Filters NONE Steam 1 RUN: 4ef53a3d-98e0-45bb-9cc6-76f24e5dc55d